bitfinex-derivatives/quotes_ETHF0:USTF0_20250621
["timestamp","ask_amount","ask_price","bid_price","bid_amount"]
[1750464539317,0.83245,2402.3,2402.2,6.802]
[1750464540217,0.83245,2402.3,2402.2,9.28459135]
[1750464542914,0.83245,2402.3,2402.2,2.48259135]
[1750464543115,0.83255,2402.0,2401.9,3.307488]
[1750464543322,0.83255,2402.0,2401.4,6.91412666]
[1750464543323,0.83273,2401.5,2401.4,6.91412666]
[1750464543615,0.83283,2401.2,2401.1,6.801]
[1750464544218,0.83283,2401.2,2400.9,6.801]
[1750464544219,3.2078,2401.2,2400.9,6.801]
[1750464544418,0.8329,2401.0,2400.9,6.801]
[1750464546515,0.83274,2401.5,2401.2,0.83282]
[1750464546718,0.8327,2401.6,2401.3,7.63478]
[1750464547034,3.2078,2401.8,2401.4,0.83275]
[1750464547035,0.83264,2401.8,2401.4,0.83275]
[1750464547323,0.83267,2401.7,2401.4,1.3293]
[1750464547621,0.83267,2401.7,2401.4,2.16205]
[1750464548020,2.0551,2402.0,2401.5,3.2078]
[1750464548222,2.0551,2402.0,2401.5,0.8327]
[1750464548525,3.2078,2401.8,2401.1,0.83287]
[1750464548727,3.2078,2401.5,2401.2,6.802]
[1750464548927,2.23018,2401.4,2401.2,6.802]
[1750464549720,2.23018,2401.4,2401.2,7.63483]
[1750464552229,1.3974,2401.4,2401.2,7.63483]
[1750464552923,1.3974,2401.4,2401.3,0.8328]
[1750464553426,1.3974,2401.4,2401.2,7.63482]
[1750464554533,1.3974,2401.4,2401.3,0.8328]
[1750464555120,4.04045,2401.8,2401.2,10.10950904]
[1750464555322,0.83266,2401.7,2401.5,0.83271]
[1750464555521,4.04044,2401.8,2401.5,0.83271]
[1750464555823,4.04044,2401.8,2401.6,0.83269]
[1750464556631,1.52877,2402.0,2401.8,0.83261]
[1750464556826,0.83259,2401.9,2401.7,7.63462]
[1750464557331,1.52878,2402.0,2401.8,0.83262]
[1750464557531,0.83259,2401.9,2401.8,0.83262]
[1750464557926,0.83259,2401.9,2401.7,7.63463]
[1750464558834,1.52878,2402.0,2401.7,7.63463]
[1750464559133,1.52878,2402.0,2401.8,0.83261]
[1750464559332,0.83259,2401.9,2401.7,7.63464]
[1750464561143,1.52877,2402.0,2401.8,0.83262]
[1750464561326,1.52877,2402.0,2401.7,7.63463]
[1750464561526,0.83259,2401.9,2401.7,7.63463]
[1750464561732,1.52877,2402.0,2401.8,0.83261]
[1750464562933,0.6962,2402.0,2401.6,3.2078]
[1750464563138,5.28936,2401.8,2401.3,0.8328]
[1750464563338,0.83275,2401.5,2401.4,2.48275897]
[1750464563537,0.83271,2401.6,2401.4,2.48275897]
[1750464564039,0.83273,2401.5,2401.4,2.48275897]
[1750464564836,0.83271,2401.6,2401.4,2.48275897]
[1750464565233,0.83271,2401.6,2401.4,3.31551897]
[1750464565432,0.83271,2401.6,2401.4,2.48275897]
[1750464566645,0.83273,2401.5,2401.4,2.48275897]
[1750464567242,0.83276,2401.4,2401.2,10.09550904]
[1750464567437,0.83276,2401.4,2401.2,7.62082]
[1750464568446,0.83275,2401.5,2401.2,7.62082]
[1750464568649,0.83268,2401.7,2401.4,2.48552436]
[1750464568948,0.83269,2401.6,2401.5,2.48552436]
[1750464569138,0.83268,2401.7,2401.5,2.48552436]
[1750464569334,2.0292,2402.0,2401.5,5.69332436]
[1750464569557,2.0292,2402.0,2401.8,3.31812436]
[1750464569558,1.52875,2402.0,2401.8,3.31812436]
[1750464569856,0.7138,2402.1,2401.9,2.48552436]
[1750464570045,0.8325,2402.2,2402.0,3.31725073]
[1750464570551,0.8325,2402.2,2402.0,9.27270073]
[1750464570751,0.83252,2402.1,2402.0,9.27270073]
[1750464570956,0.83251,2402.2,2402.0,10.10524073]
[1750464571451,4.04023,2402.4,2402.2,0.83248]
[1750464571651,0.83245,2402.3,2402.1,3.31719073]
[1750464572254,3.2078,2402.4,2402.1,2.48470073]
[1750464572450,0.83248,2402.2,2402.1,2.48470073]
[1750464573352,0.83247,2402.3,2402.1,3.31722073]
[1750464573752,0.83247,2402.3,2402.1,2.48470073]
[1750464574460,0.83248,2402.2,2402.1,2.48470073]
[1750464574655,1.3576,2402.5,2402.2,0.83246]
[1750464574861,0.83243,2402.4,2402.3,2.48310968]
[1750464575051,2.18999,2402.5,2402.3,3.31554968]
[1750464575362,0.83241,2402.4,2402.3,2.48310968]
[1750464575752,2.19,2402.5,2402.3,3.31555968]
[1750464575954,0.83241,2402.4,2402.3,2.48310968]
[1750464576653,2.18999,2402.5,2402.3,3.31553968]
[1750464577163,0.703,2402.5,2402.4,7.61941]
[1750464577352,0.703,2402.5,2402.4,10.10251968]
[1750464577553,0.703,2402.5,2402.4,7.61941]
[1750464577753,3.2078,2402.7,2402.4,9.27010968]
[1750464577958,4.04011,2402.7,2402.5,3.31466086]
[1750464578359,0.83235,2402.6,2402.5,2.48230086]
[1750464579654,0.83238,2402.5,2402.4,6.787]
[1750464580163,0.83238,2402.5,2402.4,9.26762115]
[1750464580361,0.83238,2402.5,2402.4,9.26756362]
[1750464581564,0.83238,2402.5,2402.4,6.787]
[1750464581964,0.83238,2402.5,2402.4,8.1319]
[1750464582163,0.83238,2402.5,2402.4,10.61136544]
[1750464582464,0.83238,2402.5,2402.4,10.61093626]
[1750464584158,0.83236,2402.6,2402.4,8.96431]
[1750464584353,0.83236,2402.6,2402.5,2.47871146]
[1750464584557,0.83238,2402.5,2402.4,10.61061146]
[1750464584965,0.83238,2402.5,2402.4,9.26571146]
[1750464586569,2.6574,2402.9,2402.5,0.83237]
[1750464586775,0.83236,2402.6,2402.5,2.47871146]
[1750464587371,0.83236,2402.6,2402.4,10.09810146]
[1750464587573,0.83236,2402.6,2402.5,0.83238]
[1750464588175,0.83236,2402.6,2402.5,1.49768]
[1750464588376,0.83236,2402.6,2402.5,3.97639146]
[1750464588672,3.2078,2403.0,2402.5,3.97639146]
[1750464588673,0.83231,2402.8,2402.6,0.83234]
[1750464588869,3.2078,2403.0,2402.5,4.47071146]
[1750464589069,0.83226,2402.9,2402.7,0.8323]
[1750464589270,0.83226,2402.9,2402.8,7.4593]
[1750464591071,0.83226,2402.9,2402.8,6.786]
[1750464592878,5.9176,2403.3,2402.8,9.26471146]
[1750464593077,3.2078,2403.9,2403.2,3.2078]
[1750464593378,0.83201,2403.6,2403.4,1.64908253]
[1750464593679,0.83198,2403.7,2403.5,1.64908253]
[1750464593879,0.83198,2403.7,2403.6,6.758]
[1750464594275,2.18788,2403.7,2403.6,6.758]
[1750464595678,0.6472,2403.8,2403.6,6.758]
[1750464595878,0.6994,2404.1,2403.9,0.83188]
[1750464596078,0.83184,2404.1,2404.0,6.757]
[1750464596275,4.03959,2404.3,2404.0,7.58885]
[1750464596475,0.83181,2404.2,2404.0,8.40302884]
[1750464597084,0.83183,2404.1,2404.0,8.40302884]
[1750464597483,0.83186,2404.0,2403.9,1.64602884]
[1750464597688,0.8319,2403.9,2403.8,1.64602884]
[1750464597988,0.83193,2403.8,2403.7,6.756]
[1750464598186,0.83203,2403.5,2403.4,8.40202884]
[1750464598384,0.83203,2403.5,2403.4,6.756]
[1750464599386,0.83203,2403.5,2403.3,49.58702884]
[1750464599587,0.83203,2403.5,2403.4,6.756]
[1750464601390,2.25453,2403.5,2403.4,6.756]
[1750464601789,1.50501,2403.6,2403.4,6.756]
[1750464601994,0.83203,2403.5,2403.4,8.40202884]
[1750464602282,0.83203,2403.5,2403.4,6.756]
[1750464602484,3.2078,2403.7,2403.4,9.23407884]
[1750464602692,0.83195,2403.8,2403.6,1.64602884]
[1750464602879,0.83195,2403.8,2403.7,6.755]
[1750464603980,1.50471,2403.9,2403.7,6.755]
[1750464604385,0.83193,2403.8,2403.7,6.755]
[1750464604593,0.83193,2403.8,2403.7,8.40102884]
[1750464604993,1.50472,2403.9,2403.7,8.40102884]
[1750464605192,0.83193,2403.8,2403.7,8.40102884]
[1750464606089,0.83193,2403.8,2403.7,6.755]
[1750464606592,0.83193,2403.8,2403.7,8.40102884]
[1750464608394,0.83196,2403.7,2403.6,6.755]
[1750464608596,2.13136,2403.7,2403.6,6.755]
[1750464608995,0.83196,2403.7,2403.6,6.755]
[1750464609188,0.83196,2403.7,2403.6,8.40102884]
[1750464613800,0.83196,2403.7,2403.5,6.754]
[1750464613801,3.2078,2403.7,2403.5,6.754]
[1750464613995,2.9212,2403.6,2403.5,6.754]
[1750464615196,0.83207,2403.4,2403.3,49.59068631]
[1750464615500,4.03987,2403.4,2403.3,8.40468631]
[1750464615903,5.46827,2403.4,2403.3,8.40468631]
[1750464617503,5.46827,2403.4,2403.3,6.755]
[1750464618501,5.46827,2403.4,2403.3,9.23371146]
[1750464618695,2.26047,2403.4,2403.3,6.755]
[1750464619005,2.26047,2403.4,2403.3,9.23371146]
[1750464619206,2.26047,2403.4,2403.3,6.755]
[1750464619907,5.46827,2403.4,2403.3,6.755]
[1750464620505,5.46827,2403.4,2403.3,9.23371146]
[1750464624709,0.83221,2403.0,2402.9,9.22071146]
[1750464624914,0.83238,2402.5,2402.4,10.04950904]
[1750464625213,0.83238,2402.5,2402.4,6.742]
[1750464625906,0.83241,2402.4,2402.3,3.30750904]
[1750464626101,0.83245,2402.3,2402.2,6.77211632]
[1750464627004,0.83245,2402.3,2402.2,3.30750904]
[1750464627312,0.83245,2402.3,2402.1,14.77351904]
[1750464627507,0.83235,2402.6,2402.3,0.83245]
[1750464627707,0.83238,2402.5,2402.4,6.742]
[1750464627911,5.1944,2402.7,2402.1,6.742]
[1750464628208,4.04028,2402.2,2402.1,6.742]
[1750464629611,3.2078,2402.2,2402.1,6.742]
[1750464629815,0.83247,2402.3,2402.1,6.742]
[1750464630121,0.83247,2402.3,2402.2,0.6824]
[1750464630311,0.83243,2402.4,2402.2,0.6824]
[1750464630503,0.83245,2402.4,2402.2,0.6824]
[1750464630705,0.83245,2402.3,2402.2,0.6824]
[1750464632313,0.83248,2402.2,2402.1,6.742]
[1750464641718,0.83247,2402.3,2402.1,6.742]
[1750464641918,0.83248,2402.2,2402.1,6.742]
[1750464643818,0.83246,2402.3,2402.1,6.742]
[1750464644017,0.83246,2402.3,2402.2,0.6673]
[1750464646609,0.83248,2402.2,2402.1,2.47742466]
[1750464646918,5.191,2402.2,2401.7,3.46699613]
[1750464647108,3.2078,2401.9,2401.7,5.94442079]
[1750464648425,4.04041,2401.9,2401.7,6.77707079]
[1750464650222,3.2078,2401.9,2401.8,3.31004466]
[1750464650422,4.04027,2402.3,2401.7,32.34479613]
[1750464650626,4.04027,2402.3,2402.2,3.46699613]
[1750464650816,4.04027,2402.3,2402.2,10.21199613]
[1750464651826,3.2078,2402.3,2402.2,10.21199613]
[1750464652226,3.2078,2402.3,2402.2,12.69270928]
[1750464652818,3.2078,2402.3,2402.2,9.22571315]
[1750464653021,4.04025,2402.3,2402.2,9.22571315]
[1750464654128,4.04025,2402.3,2402.2,6.745]
[1750464654520,3.2078,2402.3,2402.2,6.745]
[1750464654720,3.2078,2402.3,2402.2,7.57748]
[1750464656231,3.2078,2402.3,2402.2,10.88498904]
[1750464657223,4.04025,2402.3,2402.2,10.05250904]
[1750464658928,4.04025,2402.3,2402.2,10.88498904]
[1750464659123,3.2078,2402.3,2402.2,10.88498904]
[1750464659520,4.04025,2402.3,2402.2,10.88498904]
[1750464659729,4.04025,2402.3,2402.2,10.05250904]
[1750464660129,4.04025,2402.3,2402.2,10.88498904]
[1750464660432,4.04025,2402.3,2402.2,10.05250904]
[1750464661231,3.2078,2402.3,2402.2,10.88498904]
[1750464661437,3.2078,2402.3,2402.2,7.57748]
[1750464661634,4.04017,2402.6,2402.4,0.83241]
[1750464661935,4.04017,2402.6,2402.5,10.03432676]
[1750464662123,4.04017,2402.6,2402.5,6.716]
[1750464663130,5.34697,2402.6,2402.5,6.716]
[1750464663532,0.83238,2402.5,2402.4,2.48764707]
[1750464663931,2.13918,2402.5,2402.4,2.48764707]
[1750464664533,0.83241,2402.4,2402.3,2.48764707]
[1750464664730,2.13921,2402.4,2402.3,2.48764707]
[1750464665032,19.67583307,2402.4,2401.8,3.31832676]
[1750464665334,0.83262,2401.8,2401.7,3.31832676]
[1750464665938,0.83264,2401.8,2401.6,10.03432676]
[1750464666140,1.3912,2401.7,2401.6,6.716]
[1750464666429,1.3912,2401.7,2401.6,7.54869]
[1750464666635,4.04037,2402.0,2401.7,0.83266]
[1750464666833,0.8326,2401.9,2401.6,16.68741064]
[1750464667232,0.83263,2401.8,2401.6,10.03437757]
[1750464668334,1.48623,2401.8,2401.6,6.716]
[1750464669538,0.83266,2401.7,2401.6,6.716]
[1750464670739,3.2078,2401.8,2401.6,6.716]
[1750464670939,3.2078,2401.8,2401.6,10.86704757]
[1750464671139,4.04042,2401.8,2401.6,10.86704757]
[1750464672140,4.04042,2401.8,2401.6,10.03437757]
[1750464672342,0.83266,2401.7,2401.6,6.716]
[1750464673040,2.24926,2401.7,2401.6,6.716]
[1750464674843,2.24926,2401.7,2401.6,10.18253757]
[1750464676839,0.83269,2401.6,2401.5,16.23400982]
[1750464677040,2.0887,2401.7,2401.5,3.46653757]
[1750464677239,4.74924,2401.8,2401.5,3.46653757]
[1750464677433,4.74924,2401.8,2401.7,3.46653757]
[1750464677434,4.74922,2401.8,2401.7,3.46653757]
[1750464677840,4.74922,2401.8,2401.7,10.18353757]
[1750464679038,4.04042,2401.8,2401.7,10.18353757]
[1750464680445,4.04042,2401.8,2401.7,6.717]
[1750464680744,4.04042,2401.8,2401.4,10.18353757]
[1750464680745,3.2078,2401.8,2401.4,10.18353757]
[1750464681047,2.0527,2401.7,2401.4,10.18353757]
[1750464681539,0.7156,2401.6,2401.4,10.18353757]
[1750464681739,1.3717,2401.5,2401.4,10.18353757]
[1750464682245,0.83268,2401.7,2401.4,11.01627757]
[1750464682439,0.8327,2401.6,2401.4,7.54974]
[1750464683646,0.8327,2401.6,2401.5,3.46653757]
[1750464684554,0.83273,2401.5,2401.4,6.717]
[1750464684742,2.80943,2401.5,2401.4,6.717]
[1750464684944,2.80943,2401.5,2401.4,9.20121185]
[1750464686453,2.80943,2401.5,2401.4,6.717]
[1750464686650,2.80943,2401.5,2401.4,9.20310787]
[1750464686949,2.80943,2401.5,2401.4,9.20311459]
[1750464687149,2.80943,2401.5,2401.4,6.717]
[1750464687547,0.83271,2401.6,2401.4,7.54975]
[1750464687740,0.83271,2401.6,2401.5,5.95277965]
[1750464689452,0.8328,2401.3,2401.2,7.401]
[1750464689652,4.0406,2401.3,2401.2,7.401]
[1750464689852,4.0406,2401.3,2401.2,9.88915847]
[1750464690551,4.0406,2401.3,2401.2,7.401]
[1750464690743,4.0406,2401.3,2401.2,9.88874687]
[1750464691146,4.0406,2401.3,2401.2,7.401]
[1750464691549,4.0406,2401.3,2401.2,9.88899875]
[1750464692159,4.0406,2401.3,2401.2,7.401]
[1750464692953,0.8329,2401.0,2400.9,3.31837757]
[1750464693150,4.0407,2401.0,2400.9,2.48984277]
[1750464693364,0.83293,2400.9,2400.8,2.48984277]
[1750464693547,2.95693,2400.9,2400.8,2.48984277]
[1750464697160,0.83297,2400.8,2400.7,3.15174277]
[1750464697767,0.833,2400.7,2400.6,3.20054277]
[1750464698658,0.833,2400.7,2400.6,0.7107]
[1750464699667,0.833,2400.7,2400.6,4.17723757]
[1750464700162,0.83298,2400.8,2400.6,10.90823757]
[1750464700360,0.83295,2400.9,2400.6,11.74126757]
[1750464700566,0.83295,2400.9,2400.8,3.46653757]
[1750464700963,0.83295,2400.9,2400.8,3.53501356]
[1750464701671,3.2078,2401.0,2400.8,3.53501356]
[1750464701972,4.04072,2401.0,2400.8,3.53501356]
[1750464702170,4.04072,2401.0,2400.9,0.6802]
[1750464702678,3.2078,2401.0,2400.9,8.24413]
[1750464702871,0.83283,2401.2,2400.9,8.7654]
[1750464703075,0.83283,2401.2,2401.1,3.46653757]
[1750464703273,3.2078,2401.3,2401.1,4.29938757]
[1750464703475,3.2078,2401.3,2401.2,10.04838891]
[1750464703673,3.2078,2401.3,2401.2,11.40258891]
[1750464706175,3.2078,2401.7,2401.2,10.56975891]
[1750464706382,3.2078,2401.7,2401.6,3.46653757]
[1750464706383,4.04048,2401.7,2401.6,3.46653757]
[1750464706580,4.04048,2401.7,2401.6,10.19753757]
[1750464707775,4.04048,2401.7,2401.6,6.731]
[1750464708180,0.83269,2401.6,2401.5,8.38734611]
[1750464708676,0.83269,2401.6,2401.5,6.731]
[1750464709177,0.83269,2401.6,2401.5,6.79947599]
[1750464709680,0.83269,2401.6,2401.5,8.45611901]
[1750464710070,0.83269,2401.6,2401.5,6.79947599]
[1750464710365,0.83269,2401.6,2401.5,6.731]
[1750464710568,0.83269,2401.6,2401.5,8.3878449]
[1750464711081,0.83269,2401.6,2401.5,6.731]
[1750464712875,4.04048,2401.7,2401.5,6.731]
[1750464713183,4.04048,2401.7,2401.6,1.6569061]
[1750464713383,4.04048,2401.7,2401.6,2.3531061]
[1750464716478,5.45768,2401.7,2401.6,2.3531061]
[1750464719185,5.45768,2401.7,2401.6,1.6569061]
[1750464719382,10.45768,2401.7,2401.6,1.6569061]
[1750464719781,0.83269,2401.6,2401.5,8.3879061]
[1750464719981,2.24939,2401.6,2401.5,8.3879061]
[1750464720179,0.83273,2401.5,2401.4,1.6569061]
[1750464720376,2.1002,2401.5,2400.9,1.6569061]
[1750464720582,4.0407,2401.0,2400.9,1.6569061]
[1750464722885,0.83304,2400.6,2400.5,8.3729061]
[1750464723182,0.83314,2400.3,2400.2,1.6569061]
[1750464723388,0.83318,2400.2,2400.1,2.48455891]
[1750464723691,0.83321,2400.1,2400.0,2.48455891]
[1750464723897,0.83321,2400.1,2399.8,4.01527757]
[1750464723898,0.83328,2399.9,2399.8,1.65790336]
[1750464724083,0.83332,2399.8,2399.7,1.65790336]
[1750464724486,3.2078,2399.9,2399.6,1.65790336]
[1750464724694,3.2078,2399.9,2399.8,0.83332]
[1750464724887,4.04091,2400.5,2399.8,9.20055891]
[1750464725192,4.04089,2400.5,2400.2,1.65563561]
[1750464725492,4.04089,2400.5,2400.3,1.3422]
[1750464725687,0.83311,2400.4,2400.3,1.3422]
[1750464726487,4.04089,2400.5,2400.3,1.3422]
[1750464727193,0.83311,2400.4,2400.3,1.3422]
[1750464727695,2.26393,2400.4,2400.2,6.716]
[1750464728291,0.83314,2400.3,2400.2,6.716]
[1750464728493,2.26392,2400.4,2400.2,6.716]
[1750464728793,0.83314,2400.3,2400.2,6.716]
[1750464728990,4.04089,2400.5,2400.2,7.54917]
[1750464729195,0.83311,2400.4,2400.2,6.716]
[1750464729993,2.75777,2400.9,2400.2,6.716]
[1750464729994,6.718,2401.3,2400.4,0.83311]
[1750464730298,4.04076,2400.9,2400.7,3.46653757]
[1750464730598,3.2078,2400.9,2400.7,3.46653757]
[1750464730791,3.2078,2400.9,2400.6,1.50272]
[1750464730989,0.83292,2401.0,2400.7,0.833]
[1750464731189,0.83294,2400.9,2400.6,1.50272]
[1750464732298,0.83294,2400.9,2400.6,3.15533149]
[1750464732690,0.83292,2401.0,2400.7,0.833]
[1750464732892,0.83293,2400.9,2400.7,0.833]
[1750464733192,0.83293,2400.9,2400.6,3.15533149]
[1750464733895,0.83292,2401.0,2400.7,0.833]
[1750464734202,1.3536,2401.1,2400.8,0.83295]
[1750464734403,2.18649,2401.1,2400.8,6.718]
[1750464734796,0.8329,2401.0,2400.8,6.718]
[1750464735392,0.83293,2400.9,2400.8,6.718]
[1750464736300,2.18649,2401.1,2400.8,7.55096]
[1750464736500,3.8926,2401.2,2400.8,7.55096]
[1750464736702,0.8329,2401.0,2400.8,8.87586]
[1750464736899,0.8329,2401.0,2400.8,8.0429]
[1750464737201,0.83292,2401.0,2400.8,6.718]
[1750464737501,0.83292,2401.0,2400.8,7.55096]
[1750464738098,0.83292,2401.0,2400.8,6.718]
[1750464738394,0.83292,2401.0,2400.8,7.55096]
[1750464738700,0.83287,2401.1,2400.9,0.83293]
[1750464738998,0.83287,2401.1,2400.8,8.37061149]
[1750464738999,0.83287,2401.1,2401.0,0.646]
[1750464741305,4.72546,2401.2,2401.0,0.646]
[1750464741507,4.04064,2401.2,2401.1,6.718]
[1750464748608,4.04064,2401.2,2401.0,1.65261149]
[1750464748609,0.83287,2401.1,2401.0,1.65261149]
[1750464748905,2.21087,2401.1,2401.0,1.65261149]
[1750464751303,8.97487,2401.1,2401.0,1.65261149]
[1750464751517,0.83293,2400.9,2400.8,1.72108748]
[1750464751817,4.04073,2400.9,2400.8,1.72108748]
[1750464752811,5.34963,2400.9,2400.8,1.72108748]
[1750464755011,5.34963,2400.9,2400.8,0.06847599]
[1750464756411,5.34963,2400.9,2400.8,2.5519294]
[1750464756612,4.04073,2400.9,2400.8,2.5519294]
[1750464756922,3.2078,2400.9,2400.8,13.61894422]
[1750464757104,3.2078,2400.9,2400.8,14.45386838]
[1750464757507,3.2078,2400.9,2400.8,11.80489081]
[1750464758014,4.04073,2400.9,2400.8,1.57084599]
[1750464758218,4.04073,2400.9,2400.8,11.80489081]
[1750464758418,4.04073,2400.9,2400.8,10.97192081]
[1750464758811,4.04073,2400.9,2400.8,12.39052081]
[1750464759019,4.04073,2400.9,2400.8,13.22349081]
[1750464759217,3.2078,2400.9,2400.8,13.22349081]
[1750464762711,0.83285,2401.2,2400.8,12.39052081]
[1750464762916,3.2078,2401.3,2401.0,6.79370189]
[1750464763117,0.83285,2401.2,2401.1,0.6991]
[1750464763418,0.83285,2401.2,2401.1,4.02275707]
[1750464764419,0.83285,2401.2,2401.1,0.6991]
[1750464771112,0.83285,2401.2,2401.1,0.76757599]
[1750464782529,2.13425,2401.2,2401.1,0.76757599]
[1750464784236,2.13425,2401.2,2401.0,0.18433306]
[1750464784237,0.83287,2401.1,2401.0,0.18433306]
[1750464784438,2.7009,2401.1,2400.7,3.2078]
[1750464784639,0.83297,2400.8,2400.7,3.2078]
[1750464786040,1.3799,2401.0,2400.7,4.04079]
[1750464786235,0.83297,2400.8,2400.7,3.2078]
[1750464786942,0.83295,2400.9,2400.7,4.04079]
[1750464787134,0.83295,2400.9,2400.8,3.47004482]
[1750464793538,0.83297,2400.8,2400.7,3.2078]
[1750464797343,0.833,2400.7,2400.6,4.08215457]
[1750464797642,0.833,2400.7,2400.6,3.32582633]
[1750464797846,0.83304,2400.6,2400.5,10.70572633]
[1750464798039,1.50594,2400.6,2400.5,10.70572633]
[1750464798747,1.50594,2400.6,2400.5,10.04782633]
[1750464798947,9.71374,2400.6,2400.5,3.32582633]
[1750464799157,9.71374,2400.6,2400.4,2.49413071]
[1750464799158,0.83307,2400.5,2400.4,2.49413071]
[1750464799448,0.83307,2400.5,2400.3,2.49413071]
[1750464799449,0.83311,2400.4,2400.3,2.49413071]
[1750464799647,0.83311,2400.4,2400.2,2.49413071]
[1750464799648,0.83314,2400.3,2400.2,2.49413071]
[1750464799850,5.34834,2400.3,2400.2,2.49413071]
[1750464800050,0.83318,2400.2,2400.1,2.49413071]
[1750464800350,2.79088,2400.2,2400.1,2.49413071]
[1750464801249,1.9577,2400.2,2399.8,2.49413071]
[1750464801450,1.9577,2400.2,2399.7,2.49413071]
[1750464801451,0.83332,2399.8,2399.7,2.49413071]
[1750464801650,0.83335,2399.7,2399.6,3.20123071]
[1750464803446,0.83339,2399.6,2399.5,9.89393071]
[1750464803847,0.83339,2399.6,2399.5,9.21613071]
[1750464804048,0.83339,2399.6,2399.5,6.722]
[1750464806451,4.04107,2400.0,2399.7,0.83333]
[1750464806653,3.2078,2400.4,2399.9,3.47004482]
[1750464806957,0.83321,2400.2,2400.0,0.6553]
[1750464807351,0.83316,2400.3,2400.1,3.47004482]
[1750464807950,0.83316,2400.3,2400.1,6.67784482]
[1750464808152,0.83306,2400.6,2400.3,0.83314]
[1750464808351,0.83309,2400.5,2400.3,3.47004482]
[1750464808558,0.83309,2400.5,2400.4,0.7155]
[1750464809158,0.83306,2400.6,2400.4,3.9233]
[1750464809352,0.83302,2400.7,2400.5,3.47004482]
[1750464809555,0.83302,2400.7,2400.6,0.6547]
[1750464815757,0.83302,2400.7,2400.6,0.72317599]
[1750464817956,0.83302,2400.7,2400.6,0.06847599]
[1750464818668,0.83304,2400.6,2400.5,6.719]
[1750464819071,0.83303,2400.7,2400.5,11.02211482]
[1750464819467,0.83303,2400.7,2400.5,10.18904482]
[1750464819766,0.83303,2400.7,2400.6,0.06847599]
[1750464822064,94.14741482,2400.7,2400.2,2.05676633]
[1750464822261,2.08305,2400.1,2399.1,4.12234482]
[1750464822464,0.83343,2399.5,2399.3,3.47004482]
[1750464822865,0.83346,2399.4,2399.3,3.47004482]
[1750464823463,0.83346,2399.4,2399.1,11.67389482]
[1750464823669,0.83346,2399.4,2399.2,6.718]
[1750464824075,0.83346,2399.4,2399.2,8.0385]
[1750464825269,3.2078,2399.6,2399.3,6.718]
[1750464825470,1.4033,2399.5,2399.3,6.718]
[1750464825669,0.83346,2399.4,2399.3,6.718]
[1750464828369,0.83346,2399.4,2399.1,1.48586]
[1750464828571,0.83346,2399.4,2399.2,6.719]
[1750464828972,0.83349,2399.3,2399.2,6.719]
[1750464829483,3.2078,2399.6,2399.2,7.55251]
[1750464829774,0.83347,2399.4,2399.2,7.55252]
[1750464830480,0.83349,2399.3,2399.2,6.719]
[1750464830982,4.04129,2399.3,2399.2,6.719]
[1750464837384,0.83352,2399.2,2399.1,0.06847599]
[1750464837579,2.12332,2399.2,2399.1,0.06847599]
[1750464837785,0.83352,2399.2,2399.1,0.06847599]
[1750464838279,2.12332,2399.2,2399.1,0.06847599]
[1750464838477,2.78102,2399.2,2399.1,0.06847599]
[1750464839584,6.25106482,2399.2,2399.1,0.06847599]
[1750464841281,11.25106482,2399.2,2399.1,0.06847599]
[1750464841681,2.08398,2399.1,2398.0,3.47004482]
[1750464841983,3.2078,2398.5,2398.2,0.6556]
[1750464842289,0.83392,2398.1,2397.8,16.7838834]
[1750464842883,0.83393,2398.1,2397.8,16.7839034]
[1750464843083,0.83393,2398.1,2397.8,15.9498934]
[1750464843397,0.83382,2398.4,2398.1,0.83391]
[1750464843688,0.83382,2398.4,2398.0,3.47004482]
[1750464843689,0.83385,2398.3,2398.2,0.6554]
[1750464844189,11.67784482,2398.3,2397.7,2.48204858]
[1750464844395,0.834,2397.9,2397.6,7.62506]
[1750464844693,4.04176,2398.0,2397.7,4.30407482]
[1750464844893,3.2078,2398.0,2397.8,0.83398]
[1750464845193,0.83394,2398.0,2397.9,0.6554]
[1750464845385,4.04174,2398.0,2397.9,0.6554]
[1750464846083,0.83398,2397.9,2397.8,0.6458]
[1750464846284,0.83405,2397.7,2397.6,6.791]
[1750464846477,3.2078,2398.0,2397.7,0.83403]
[1750464846681,3.2078,2398.0,2397.6,7.62507]
[1750464846988,0.83401,2397.8,2397.6,7.62507]
[1750464847590,0.834,2397.9,2397.6,7.62507]
[1750464847791,0.834,2397.9,2397.6,9.03407]
[1750464848286,0.834,2397.9,2397.7,0.83404]
[1750464848479,0.83398,2397.9,2397.6,9.03406]
[1750464848684,3.2078,2398.0,2397.6,9.03406]
[1750464848883,0.83405,2397.7,2397.6,6.791]
[1750464849794,3.2078,2397.7,2397.6,6.791]
[1750464850197,4.04185,2397.7,2397.6,6.791]
[1750464850690,0.83412,2397.5,2397.4,1.3747]
[1750464852793,3.2078,2397.7,2397.4,1.3747]
[1750464853094,3.2078,2397.7,2397.5,3.47004482]
[1750464853299,3.2078,2397.7,2397.5,4.30412482]
[1750464853491,0.83405,2397.7,2397.5,4.30412482]
[1750464853686,0.83405,2397.7,2397.5,3.47004482]
[1750464853986,0.83405,2397.7,2397.5,0.83412]
[1750464854193,0.83405,2397.7,2397.4,2.20883]
[1750464854491,4.04188,2397.6,2397.4,2.20883]
[1750464854899,0.83415,2397.4,2397.3,48.009]
[1750464855099,0.83415,2397.4,2397.3,54.803]
[1750464855496,0.83414,2397.5,2397.3,6.794]
[1750464855702,0.83415,2397.4,2397.3,6.794]
[1750464855901,4.5427,2397.6,2397.2,3.47004482]
[1750464856107,0.83415,2397.4,2397.2,4.80014482]
[1750464856301,0.83419,2397.3,2397.2,3.47004482]
[1750464856600,3.8584,2397.9,2397.4,0.83413]